Cogmind - Beta 13 @@@ ROGUE MODE // 2024.06.27 @ 15:16:36 Player: ZergFTW Result: Self-destructed Performance ------------- Evolutions (4) 2000 Regions Visited (5) 1000 Robots Destroyed (27) 135 Value Destroyed (518) 518 Prototype IDs (1) 20 Alien Tech Used (0) 0 Bonus (635) 635 TOTAL SCORE: 4308 Bonus ------- Follower Combat Kills 163 Entered DSFs 500 Friendly Fire -28 Cogmind --------- Core Integrity 850/850 Matter 157/300 Energy 265/265 System Corruption 0% Temperature Cool (0) Movement Core (550) Ox10 Location -6/DSF Parts ------- > --- POWER (2) -------- Improved Ion Engine > --- PROPULSION (4) --- (None) > --- UTILITY (7) ------ Scrap Engine Large Storage Unit Sensor Array Signal Interpreter Hacking Suite V3-11A's Pendant > --- WEAPON (2) ------- Mini Grenade Launcher Mini Grenade Launcher > --- INVENTORY (15) --- Deuterium Engine Large Matter Pod (150) Structural Scanner Sensor Array ECM Suite Beam Cannon Heavy Assault Rifle Heavy Assault Rifle Battle Rifle Great Maul Peak State ------------ > --- POWER ------------ Improved Ion Engine > --- PROPULSION ------- Wheel Wheel > --- UTILITY ---------- Scrap Engine Large Storage Unit Sensor Array Signal Interpreter Hacking Suite V3-11A's Pendant > --- WEAPON ----------- Heavy Assault Rifle Great Maul > --- INVENTORY -------- Deuterium Engine Large Matter Pod Structural Scanner Sensor Array ECM Suite Beam Cannon Heavy Assault Rifle Battle Rifle Mini Grenade Launcher Mini Grenade Launcher [Rating: 35] Favorites ----------- Power Ion Engine Engine Ion Engine Power Core Light Nuclear Core Propulsion Wheel Wheel Wheel Utility Large Storage Unit Device V3-11A's Pendant Storage Large Storage Unit Processor Signal Interpreter Hackware Hacking Suite Weapon Beam Cannon Energy Gun EM Pulse Gun Energy Cannon Beam Cannon Ballistic Gun Battle Rifle Ballistic Cannon Battle Cannon Launcher Mini Grenade Launcher Special Weapon Mining Laser Impact Weapon Hammer Slashing Weapon Makeshift Axe Special Melee Weapon Datajack Build | -11 -10 -10 -8 -6 -6 ------- Run | Yrd Mat Sub Rec Fac DSF Slots Evolved 8 | . . . . 8 . Power 1 | . . . . 1 . Propulsion 2 | . . . . 2 . Utility 5 | . . . . 5 . Weapon . | . . . . . . Parts Attached 54 | 9 21 13 2 6 3 Power 4 | 1 1 1 1 . . Engine 3 | 1 . 1 1 . . Core 1 | . 1 . . . . Reactor . | . . . . . . Propulsion 8 | 4 3 1 . . . Treads . | . . . . . . Leg . | . . . . . . Wheel 8 | 4 3 1 . . . Hover . | . . . . . . Flight . | . . . . . . Utility 15 | 2 4 3 . 6 . Device 9 | 1 1 3 . 4 . Storage 4 | 1 3 . . . . Processor 1 | . . . . 1 . Hackware 1 | . . . . 1 . Protection . | . . . . . . Artifact . | . . . . . . Weapon 27 | 2 13 8 1 . 3 Energy Gun 5 | 2 3 . . . . Energy Cannon 2 | . 1 1 . . . Ballistic Gun 3 | . 1 1 . . 1 Ballistic Cannon 1 | . . 1 . . . Launcher 5 | . 2 1 . . 2 Special Weapon 3 | . 3 . . . . Impact Weapon 4 | . 2 1 1 . . Slashing Weapon 3 | . . 3 . . . Piercing Weapon . | . . . . . . Special Melee Weapon 1 | . 1 . . . . Unidentified Prototypes 1 | . . 1 . . . Parts Lost 5 | . 1 2 . . 2 Power 1 | . . 1 . . . Propulsion 4 | . 1 1 . . 2 Utility . | . . . . . . Weapon . | . . . . . . Highest Loss Streak 2 | . 1 1 . . 2 To Critical Strikes . | . . . . . . Average Slot Usage (%) 96 | . 98 95 99 59 64 Engine 13 | . 13 13 14 6 6 Wheel 25 | . 26 24 28 13 8 Device 14 | . 14 14 14 16 20 Storage 13 | . 14 14 14 6 6 Energy Gun 6 | . 18 . . . . Energy Cannon 8 | . 2 10 14 3 . Launcher 2 | . . 3 . . 3 Impact Weapon 2 | . 3 1 2 6 4 Slashing Weapon 6 | . . 10 10 . . Naked Turns . | . . . . . . Heaviest Build 37 | 14 31 32 35 34 37 Greatest Support 32 | 32 20 20 20 20 20 Greatest Overweight (x) 3 | . 1 3 1 1 3 Average Overweight (x) 1 | . . 1 1 1 1 Largest Inventory Capacity 25 | 8 25 15 15 15 15 Average Capacity 13 | 7 11 15 15 15 15 Most Carried 15 | 7 15 15 15 14 11 Average Carried 12 | 4 10 14 14 11 10 Final Capacity 15 | 8 15 15 15 15 15 Final Carried 15 | 7 15 15 15 11 10 Scrap Engine Consumption 8 | . . . . . 8 Class Distribution -------------------- 96% | Mutant 3% | Scavenger-Mutant Dominant Class ---------------- Mutant | -10/Materials Mutant | -10/Subcaves Mutant | -8/Recycling Mutant | -6/Factory Mutant | -6/DSF Resources | -11 -10 -10 -8 -6 -6 ----------- Run | Yrd Mat Sub Rec Fac DSF Matter Collected 964 | 290 370 304 . . . Remotely . | . . . . . . Salvage Created 591 | 200 262 . 57 . 72 Parts 55 | 16 33 . 2 . 4 Haulers Intercepted 1 | . 1 . . . . Recyclers Shooed 1 | . 1 . . . . Parts Field Recycled . | . . . . . . Retrieved Matter . | . . . . . . Parts Self-Destructed 13 | . . 13 . . . Prevented . | . . . . . . Kills | -11 -10 -10 -8 -6 -6 ------- Run | Yrd Mat Sub Rec Fac DSF Combat Hostiles Destroyed 11 | . 6 2 1 . 2 Melee 1 | . . . 1 . . Guns 6 | . 6 . . . . AOE 4 | . . 2 . . 2 Classes Destroyed 12 | 3 5 2 1 . 1 Worker 4 | 2 2 . . . . Builder 1 | . 1 . . . . Tunneler 4 | 4 . . . . . Hauler 1 | . 1 . . . . Recycler 1 | 1 . . . . . Operator 1 | . 1 . . . . Turret 1 | . . 1 . . . Watcher 3 | . 3 . . . . Swarmer 6 | . 6 . . . . Sentry 1 | . . . 1 . . Specialist 2 | . . . . . 2 Subdweller 2 | . . 2 . . . Best Kill Streak 5 | 2 5 2 1 . 2 Combat Bots Only 3 | . 3 2 1 . 2 Max Kills in Single Turn 2 | 1 2 2 1 . 1 Gunslinging . | . . . . . . Exploded 2 | . . 2 . . 1 Melee 1 | . . . 1 . . Uniques/NPCs Destroyed . | . . . . . . Combat | -11 -10 -10 -8 -6 -6 -------- Run | Yrd Mat Sub Rec Fac DSF Hostile Shots Fired 58 | . 28 20 4 . 6 Missed 20 | . 10 7 3 . . Damage Taken 646 | . 227 224 15 . 180 Core 147 | . 81 51 15 . . Absorbed by Shields . | . . . . . . Regen/Repaired (Parts) 35 | . 35 . . . . Core Remaining (%) 70 | 100 . . 41 . . Volleys Fired 75 | 21 46 5 . . 3 Largest 2 | 2 2 2 . . 2 Hottest 140 | 80 140 99 . . 60 Shots Fired 138 | 42 81 10 . . 5 Gun 115 | 42 71 1 . . 1 Cannon 3 | . . 3 . . . Launcher 13 | . 3 6 . . 4 Special 7 | . 7 . . . . Kinetic 4 | . 1 2 . . 1 Thermal 57 | 21 34 2 . . . Explosive 13 | . 3 6 . . 4 Electromagnetic 64 | 21 43 . . . . Robot Hit Streak 8 | 6 8 6 . . 7 Robot Miss Streak 3 | 2 3 1 . . . Penetration Max . | . . . . . . Secondary Targets . | . . . . . . Shots Hit Robots 76 | 27 38 7 3 . 1 Core Hits 33 | 8 17 4 1 . 3 Critical Kills . | . . . . . . Critical Parts Destroyed . | . . . . . . Critical Strikes . | . . . . . . Melee Attacks 47 | . 5 39 3 . . Impact 5 | . 3 2 . . . Slashing 40 | . . 37 3 . . Piercing . | . . . . . . Sneak Attacks 4 | . 3 . 1 . . Combat Hostiles 1 | . . . 1 . . Follow-up Attacks . | . . . . . . Damage Inflicted 1943 | 332 605 621 139 . 246 Guns 758 | 332 414 . . . 12 Cannons 18 | . . 18 . . . Explosions 904 | . 131 539 . . 234 Melee 263 | . 60 64 139 . . Ramming . | . . . . . . Kinetic 18 | . 6 . . . 12 Thermal 433 | 129 286 18 . . . Explosive 773 | . . 539 . . 234 Electromagnetic 456 | 203 253 . . . . Impact 60 | . 60 . . . . Slashing 203 | . . 64 139 . . Piercing . | . . . . . . Highest Corruption . | . . . . . . Average Corruption . | . . . . . . Corruption Purged . | . . . . . . Corruption Blocked . | . . . . . . Overload Shots . | . . . . . . Overflow Damage 17 | . 17 . . . . Projectiles . | . . . . . . Explosions 17 | . 17 . . . . Melee . | . . . . . . Knockbacks . | . . . . . . Impact . | . . . . . . Kinetic . | . . . . . . Secondary . | . . . . . . Self-Inflicted Damage 97 | . 91 6 . . . Shots 3 | . 2 1 . . . Rammed . | . . . . . . Targets Rammed . | . . . . . . Kicked . | . . . . . . Crushed . | . . . . . . Highest Temperature 192 | 88 192 4 . . . Average Temperature 45 | 27 55 3 . . . Received Heat Transfer 54 | . . 45 9 . . Siege Activations . | . . . . . . Robots Corrupted . | . . . . . . Combat Hostiles . | . . . . . . Parts Fried 1 | 1 . . . . . Impact Corruptions . | . . . . . . Robots Melted . | . . . . . . Combat Hostiles . | . . . . . . Parts Melted 1 | . 1 . . . . Heat Transferred 837 | 300 500 37 . . . Parts Sabotaged . | . . . . . . Parts Stolen . | . . . . . . Parts Stripped . | . . . . . . Power Chain Reactions 2 | . 2 . . . . Alert | -11 -10 -10 -8 -6 -6 ------- Run | Yrd Mat Sub Rec Fac DSF Peak Influence 299 | 35 299 . 69 28 65 Initial 28 | . 22 . . 28 19 Average 78 | 15 99 . 42 28 15 Maximum Alert Level 1 | . 1 . . . . Low Security (%) 87 | 100 81 . 100 100 100 Level 1 12 | . 18 . . . . Level 2 . | . . . . . . Level 3 . | . . . . . . Level 4 . | . . . . . . Level 5 . | . . . . . . High Security . | . . . . . . Max Security . | . . . . . . Squads Dispatched 2 | . 1 . . . 1 Investigation . | . . . . . . Extermination . | . . . . . . Reinforcement 2 | . 1 . . . 1 Assault . | . . . . . . Garrison . | . . . . . . Intercept . | . . . . . . Searches Triggered . | . . . . . . Construction Impeded . | . . . . . . Haulers Reinforced . | . . . . . . Active Scanning Responses . | . . . . . . Cargo Convoy Interrupts . | . . . . . . Stealth | -11 -10 -10 -8 -6 -6 --------- Run | Yrd Mat Sub Rec Fac DSF Distress Signals 1 | . 1 . . . . Communications Jammed . | . . . . . . Distress Signals . | . . . . . . Times Spotted 41 | . 14 24 1 . 2 Peak Tracking Total 4 | . 4 3 1 . 2 Tactical Retreats 4 | . 2 2 . . . Traps | -11 -10 -10 -8 -6 -6 ------- Run | Yrd Mat Sub Rec Fac DSF Traps Triggered . | . . . . . . Indirectly . | . . . . . . Trap Hack Attempts . | . . . . . . Triggered . | . . . . . . Disarmed . | . . . . . . Reprogrammed . | . . . . . . Reused . | . . . . . . Traps Extracted . | . . . . . . Installed . | . . . . . . Triggered . | . . . . . . Machines | -11 -10 -10 -8 -6 -6 ---------- Run | Yrd Mat Sub Rec Fac DSF Machines Disabled 9 | . 6 3 . . . Max in Single Turn 3 | . 3 . . . . Machines Repaired . | . . . . . . Machines Dismantled . | . . . . . . Machines Sabotaged . | . . . . . . Overloaded Fab Kills . | . . . . . . Hacking | -11 -10 -10 -8 -6 -6 --------- Run | Yrd Mat Sub Rec Fac DSF Machines Accessed 15 | . 8 . 6 1 . Terminals 10 | . 6 . 3 1 . Fabricators . | . . . . . . Repair Stations 1 | . 1 . . . . Recycling Units 4 | . 1 . 3 . . Scanalyzers . | . . . . . . Garrison Access . | . . . . . . Total Hacks 38 | . 22 . 15 1 . Successful 19 | . 11 . 7 1 . Failed 19 | . 11 . 8 . . Catastrophic 4 | . 2 . 2 . . Database Lockouts . | . . . . . . Manual 19 | . 10 . 9 . . Terminals 31 | . 19 . 11 1 . Fabricators . | . . . . . . Repair Stations 2 | . 2 . . . . Recycling Units 5 | . 1 . 4 . . Scanalyzers . | . . . . . . Garrison Access . | . . . . . . Terminal Hacks 12 | . 8 . 3 1 . Open DSF 1 | . . . . 1 . Branch Access Points 1 | . 1 . . . . Terminal Index 2 | . 1 . 1 . . Alert Level 2 | . 1 . 1 . . Unreport Threat 1 | . 1 . . . . Locate Traps 3 | . 2 . 1 . . Recall Reinforcements 1 | . 1 . . . . Registered Prototypes 1 | . 1 . . . . Fabricator Hacks . | . . . . . . Repair Station Hacks 2 | . 2 . . . . Scan Component 1 | . 1 . . . . Repair 1 | . 1 . . . . Recycling Unit Hacks 5 | . 1 . 4 . . Report Inventory 4 | . 1 . 3 . . Retrieve Components 1 | . . . 1 . . Scanalyzer . | . . . . . . Garrison Access Hacks . | . . . . . . Unauthorized Hacks . | . . . . . . Terminals . | . . . . . . Fabricators . | . . . . . . Repair Stations . | . . . . . . Recycling Units . | . . . . . . Scanalyzers . | . . . . . . Garrison Access . | . . . . . . Data Cores Recovered . | . . . . . . Used . | . . . . . . Hacking Detections 9 | . 5 . 3 1 . Full Trace Events 1 | . 1 . . . . Feedback Events . | . . . . . . Feedback Blocked . | . . . . . . Robot Schematics Acquired . | . . . . . . Robots Built . | . . . . . . Authchips . | . . . . . . Time . | . . . . . . Total Robot Build Rating . | . . . . . . Part Schematics Acquired . | . . . . . . Parts Built . | . . . . . . Authchips . | . . . . . . Time . | . . . . . . Total Part Build Rating . | . . . . . . Parts Repaired 1 | . 1 . . . . Time 38 | . 38 . . . . Parts Recycled . | . . . . . . Recycled Matter . | . . . . . . Retrieved Matter . | . . . . . . Retrieved Components 2 | . . . 2 . . Parts Scanalyzed . | . . . . . . Part Schematics Acquired . | . . . . . . Parts Damaged . | . . . . . . Bothacking | -11 -10 -10 -8 -6 -6 ------------ Run | Yrd Mat Sub Rec Fac DSF Used RIF Installer . | . . . . . . Robots Hacked 1 | . 1 . . . . Non-combat 1 | . 1 . . . . Combat . | . . . . . . Robot Hacks Applied 2 | . 2 . . . . parse_system 1 | . 1 . . . . no_distress 1 | . 1 . . . . Relay Couplers Released . | . . . . . . Fabnet Peak Effective % . | . . . . . . Robots Rewired . | . . . . . . Allies Hacked . | . . . . . . Hacks Repelled . | . . . . . . Allies | -11 -10 -10 -8 -6 -6 -------- Run | Yrd Mat Sub Rec Fac DSF Total Allies 12 | . . 12 . . . Largest Group 8 | . . 8 8 8 8 Highest-Rated Group 152 | . . 152 152 152 152 Highest-Rated Ally 19 | . . 19 19 19 19 Total Orders . | . . . . . . Ally Attacks 54 | . . 36 8 . 10 Total Damage 1342 | . . 1044 132 . 166 Kills 9 | . . 7 1 . 1 Allies Corrupted . | . . . . . . Allies Melted . | . . . . . . Intel | -11 -10 -10 -8 -6 -6 ------- Run | Yrd Mat Sub Rec Fac DSF Robot Analysis Total . | . . . . . . Derelict Logs Recovered 2 | . . 2 . . . Drone Launches . | . . . . . . Drone Recoveries . | . . . . . . Exploration | -11 -10 -10 -8 -6 -6 ------------- Run | Yrd Mat Sub Rec Fac DSF Turns Passed 3704 | 206 1238 1941 263 15 41 Spaces Moved 3199 | 139 1028 1746 251 7 28 Core 13 | 13 . . . . . Treads . | . . . . . . Legs . | . . . . . . Wheels 3186 | 126 1028 1746 251 7 28 Hover . | . . . . . . Flight . | . . . . . . Fastest Speed 50 | 50 80 95 95 95 95 Average Speed 96 | 84 90 101 95 95 100 Slowest Speed 125 | 100 95 125 95 95 125 Overloaded Moves . | . . . . . . Propulsion Burnouts . | . . . . . . Robots Hopped . | . . . . . . Cave-ins Triggered . | . . . . . . Exploration Rate (%) 52 | 6 99 92 40 . 24 Regions Visited 5 Branch Regions 2 Pre-discovered Areas 2 | . . 2 . . . Known Exits Taken 1 | . . . . 1 . Unknown Exits Taken 4 | 1 1 1 1 . . Scrap Searched 4 | . . 4 . . . Spaces Dug 12 | . 7 5 . . . Terrain Destroyed 154 | . 91 47 . . 16 Melee 5 | . . 5 . . . Projectile 7 | . 7 . . . . AOE 142 | . 84 42 . . 16 Terrain Rammed . | . . . . . . Walls Destroyed . | . . . . . . Machines Disabled . | . . . . . . Actions | -11 -10 -10 -8 -6 -6 --------- Run | Yrd Mat Sub Rec Fac DSF Total 3609 | 184 1238 1863 274 16 34 Wait 157 | . 101 47 9 . . Move 3195 | 138 1027 1745 250 7 28 Hop . | . . . . . . Pick Up 49 | 15 22 8 4 . . Fast Attach 2 | . 1 . 1 . . Attach 17 | 7 1 2 . 6 1 Detach 3 | . . . . 3 . Swap 35 | 2 19 11 1 . 2 Drop 29 | 1 16 6 6 . . Fire 75 | 21 46 5 . . 3 Melee 47 | . 5 39 3 . . Ram . | . . . . . . Kick . | . . . . . . Crush . | . . . . . . Escape Stasis . | . . . . . . Rewire . | . . . . . . Trap . | . . . . . . Miscellaneous . | . . . . . . Route ------- -11/Scrapyard -10/Materials (discovered 5 exits: [*Mat x3] / *Min / [*Sub]) -10/Subcaves (discovered 3 exits: [*Mat x2] / *Rec) -8/Recycling -6/Factory -6/DSF History --------- Turn | Location | Event 12 | -11/Scrapyard | Discovered new exit (range 15) 207 | -11/Scrapyard | Entered Materials 411 | -10/Materials | Discovered new exit (range 8) 473 | -10/Materials | Discovered new exit (range 16) 524 | -10/Materials | Discovered new exit (range 14) 644 | -10/Materials | Build established: Mutant 653 | -10/Materials | Repaired Lgt. Nuclear Core 939 | -10/Materials | Identified exit to Mines 947 | -10/Materials | Discovered new exit (range 7) 947 | -10/Materials | Discovered new exit (range 4) 1445 | -10/Materials | Entered Subcaves 1448 | -10/Subcaves | Ambushed by Subdwellers from Twisted Machinery 1547 | -10/Subcaves | Learned location of Zion (-7) 1556 | -10/Subcaves | Visited triangular shrine 1562 | -10/Subcaves | Found Prototype Device 1563 | -10/Subcaves | Identified V3-11A's Pendant 1568 | -10/Subcaves | Befriended Subdweller 1583 | -10/Subcaves | Befriended Subdweller 1583 | -10/Subcaves | Befriended Subdweller 1593 | -10/Subcaves | Discovered new exit (range 8) 1618 | -10/Subcaves | Befriended Subdweller 1618 | -10/Subcaves | Befriended Subdweller 1623 | -10/Subcaves | Shifting Twisted Machinery released Mak. Axe 1627 | -10/Subcaves | Shifting Twisted Machinery released Spk. Treads 1718 | -10/Subcaves | Befriended Subdweller 1811 | -10/Subcaves | Shifting Twisted Machinery released Battle Rifle 1828 | -10/Subcaves | Shifting Twisted Machinery released Flamer 1859 | -10/Subcaves | Core integrity fell below 50% 1893 | -10/Subcaves | Discovered new exit (range 16) 1916 | -10/Subcaves | Lost 3 allies 2213 | -10/Subcaves | Discovered new exit (range 9) 2218 | -10/Subcaves | Befriended Subdweller 2338 | -10/Subcaves | Befriended Subdweller 2343 | -10/Subcaves | Befriended Subdweller 2531 | -10/Subcaves | Met a Zionite searching for "candidates" 2542 | -10/Subcaves | Learned Materials terminal intel 2628 | -10/Subcaves | Befriended Subdweller 2795 | -10/Subcaves | A swath of the cavern ceiling suddenly collapsed 2990 | -10/Subcaves | Shifting Twisted Machinery released Battle Cannon 3008 | -10/Subcaves | Befriended Subdweller 3008 | -10/Subcaves | Befriended Subdweller 3054 | -10/Subcaves | Shifting Twisted Machinery released Sub. Machine Gun 3386 | -10/Subcaves | Entered Recycling 3386 | -8/Recycling | Accompanied by 8 allies 3387 | -8/Recycling | Found Scrap Engine 3597 | -8/Recycling | Discovered new exit (range 16) 3649 | -8/Recycling | Entered Factory 3649 | -6/Factory | Accompanied by 8 allies 3649 | -6/Factory | Evolved 8 slots: Power x1, Propulsion x2, Utility x5 3664 | -6/Factory | Identified exit to DSF 3664 | -6/Factory | Entered DSF 3664 | -6/DSF | Accompanied by 8 allies 3687 | -6/DSF | Additional patrols routed to DSF 3705 | -6/DSF | Self-destructed Last Messages --------------- 03680_ V3-11A: "I hear you, but what does it all mean?!" 03680_ V3-11A destroyed. 03680_ GX-OVO(R) destroyed. 03681_ Scrap Engine consumes Flexi-carbon Leg. 03682_ Scrap Engine consumes Sub. Power Source. 03682_ Slug penetrates QP-UGZ(R). 03682_ QP-UGZ(R) destroyed. 03684_ Scrap Engine consumes Sub. Monowheel. 03684_ LI-XI2(R) suffers critical hit (Blast). 03684_ LI-XI2(R) destroyed. 03685_ TC-HLL(R) destroyed. 03686_ OC-YO2(R) destroyed. 03687_ Hostiles detected in DSF, routing additional patrols. 03689_ Wheel destroyed. 03689_ P1-UDP(R) affixes Scrap Shield Fragment to Scrap Shield. 03697_ Wheel destroyed. 03699_ X-67 Chaingunner destroyed. Map ----- +----------------------------------------------------+ | ??????????????????????????????????????????? | | ??????????????????????????????????????????? | | ??????????????????????????????????????????? | | ??????????????????????????????????????????? | | ??????????????????????????????????????????? | | ??????????????????????????????????????????? | | ??????????????????????????????????????????? | | ??????????????????????????????????????????? | | ??????????????????????????????????????????? | | ??????????????????????????????????????????? | | ?????????????????H????????????? !????????? | | ??????????????????????????????? !????????? | | ??????????????????????????????? ????????? | | ??????????????????????????????# ????????? | | ??????????????#???????????????# ##???????? | | ??????????????!???????????????= ????????? | | ???????????????!??????????????= ????????? | | ???????????????!??????????????= ????????? | | ?????????????### ????????????## ##???????? | | ?????????????# ?????????????= #???????? | | ?????????????# ????????????= #???????? | | ?????????????? ???########?# #????????? | | ?????????#?**# # *&??#! # ### ###??????? | | ??????#**#*** ###%& # ## ""###????? | | ?????=%* % =&*%R& """""????? | | ??????! [= &%& && @ ""#??????? | | ?????????# % !][#&& # ##"""""#??????? | | ?????????????#%%!!!*%#########"""""#??????? | | ?????????????#########???????##"####??????? | | ??????????????????????????????#"#?????????? | | ??????????????????????????????#""?????????? | | ???????????????????????????????##?????????? | | ??????????????????????????????????????????? | | ??????????????????????????????????????????? | | ??????????????????????????????????????????? | | ??????????????????????????????????????????? | | | | | | | | | | | | | | | | | | | | | | | | | | | | | +----------------------------------------------------+ Best States ------------- Heat Dissipation 37 Energy Generation 14 Energy Capacity 265 Matter Stores 300 Matter Capacity 300 Sight Range 16 Robot Scan Range 14 Terrain Scan Density 10 Evasion (%) 50 Offensive Hacking 10 Item Schematics ----------------- None Robot Schematics ------------------ None Fabricated ------------ Nothing Alien Tech Used ----------------- None Achievements -------------- None Challenges ------------ None Game ------ Seed TractorCatalystBeamcaster Manual? 0 Play Time 01:06:34 Cumulative 38.6 hours Start 2024.06.26 @ 21:20:06 End 2024.06.27 @ 15:16:36 Sessions 3 Manual Loads 0 Difficulty Rogue Special Mode None Game No. 31 Rogue 30 Adventurer 1 Explorer 0 Win Type - Total 0 Types 0/0/0/0/0/0/0/0/0 Lore% 21 Gallery% 22 Achievement% 24 Wizard Run 0 Options --------- Layout 1 ASCII 0 Keyboard 0 Movement Mouse Keybinds 0 Fullscreen 2 Font 24/Proggy Map View 76x35 Zoom Use 0% Tactical HUD 1 Map Filters NONE Filters NONE Steam 1 RUN: fd4502f8-5374-4c13-a654-ba9e9865f542